fUST/lending_fUST_20240923
["ID","MTS","AMOUNT","RATE_DAILY","PERIOD"]
[338900197,1727038286800,-151.0,0.00035479,120]
[338900198,1727038286809,-1500.0,0.00035591,42]
[338900199,1727038286818,-1000.0,0.00035616,70]
[338900200,1727038286827,-1000.0,0.00035616,74]
[338900201,1727038286837,-1000.0,0.00035616,78]
[338900202,1727038286850,-1000.0,0.00035616,82]
[338900203,1727038286860,-1000.0,0.00035616,86]
[338900204,1727038286869,-1000.0,0.00035616,90]
[338900205,1727038286878,-1000.0,0.00035616,94]
[338900206,1727038286887,-1000.0,0.00035616,98]
[338900207,1727038286896,-1000.0,0.00035616,102]
[338900208,1727038286906,-1000.0,0.00035616,106]
[338900209,1727038286915,-1000.0,0.00035616,110]
[338900210,1727038286925,-1000.0,0.00035616,114]
[338900211,1727038286935,-1000.0,0.00035616,118]
[338900212,1727038286944,-553.69700017,0.00035616,120]
[338900213,1727038286954,-3224.427244,0.00035616,120]
[338900214,1727038286964,-400.0,0.00035616,2]
[338900215,1727038286975,-47642.56,0.00035616,3]
[338900216,1727038286985,-153.0,0.0003565,2]
[338900217,1727038286994,-153.0,0.0003565,2]
[338900218,1727038287003,-153.0,0.0003565,2]
[338900219,1727038287012,-153.0,0.0003565,2]
[338900220,1727038287021,-153.0,0.0003565,2]
[338900221,1727038287030,-153.0,0.0003565,2]
[338900222,1727038287039,-153.0,0.0003565,2]
[338900223,1727038287049,-330.0,0.000358,120]
[338900224,1727038287058,-1500.0,0.00036,42]
[338900225,1727038287068,-250.0,0.00036,10]
[338900226,1727038287077,-1000.0,0.00036,120]
[338900227,1727038287086,-119124.36,0.00036,14]
[338900228,1727038287095,-250.0,0.00036,30]
[338900229,1727038287105,-241.0,0.00036,2]
[338900230,1727038287115,-241.0,0.00036,2]
[338900231,1727038287124,-241.0,0.00036,2]
[338900232,1727038287134,-27793.25,0.000362,14]
[338900233,1727038287144,-259.06168203,0.0003624,2]
[338900234,1727038287153,-49474.57,0.000363,14]
[338900235,1727038287163,-1500.0,0.00036409,42]
[338900236,1727038287172,-208.29240794,0.000365,120]
[338900237,1727038287181,-151.0,0.00036575,120]
[338900238,1727038287190,-150.0,0.000366,2]
[338900239,1727038287199,-524.0,0.000366,2]
[338900240,1727038287208,-1216.0,0.000366,2]
[338900241,1727038287217,-1500.0,0.00036818,42]
[338900242,1727038287228,-27793.25,0.00037,14]
[338900243,1727038287237,-151.0,0.00037014,120]
[338900244,1727038287247,-500.0,0.00037055,10]
[338900245,1727038287256,-1134.49742618,0.0003707,31]
[338900246,1727038287265,-27793.25,0.000371,14]
[338900247,1727038287274,-1331.33632884,0.000372,7]
[338900248,1727038287284,-1500.0,0.00037227,42]
[338900249,1727038287293,-5000.0,0.000375,35]
[338900250,1727038287302,-1000.0,0.000375,2]
[338900251,1727038287311,-1500.0,0.00037636,42]
[338900252,1727038287320,-151.0,0.00037671,120]
[338900253,1727038287329,-153.18231038,0.00037745,3]
[338900254,1727038287339,-208.9234097,0.0003789,2]
[338900255,1727038287348,-208.9234097,0.0003789,2]
[338900256,1727038287357,-300.0,0.00038,20]
[338900257,1727038287366,-300.0,0.00038,30]
[338900258,1727038287375,-250.0,0.00038,10]
[338900259,1727038287384,-1000.0,0.00038,120]
[338900260,1727038287394,-520.43572289,0.00038,120]
[338900261,1727038287403,-647.21304115,0.00038,10]
[338900262,1727038287412,-280.0,0.00038,120]
[338900263,1727038287421,-250.0,0.00038,30]
[338900264,1727038287431,-1500.0,0.00038045,42]
[338900265,1727038287440,-330.0,0.000383,120]
[338900266,1727038287450,-500.0,0.00038356,120]
[338900267,1727038287459,-529.57281676,0.00038356,120]
[338900268,1727038287468,-500.0,0.00038356,2]
[338900269,1727038287479,-500.0,0.00038356,2]
[338900270,1727038287488,-500.0,0.00038356,2]
[338900271,1727038287498,-500.0,0.00038356,2]
[338900272,1727038287507,-500.0,0.00038356,2]
[338900273,1727038287516,-500.0,0.00038356,2]
[338900274,1727038287526,-500.0,0.00038356,2]
[338900275,1727038287535,-500.0,0.00038356,2]
[338900276,1727038287544,-500.0,0.00038356,2]
[338900277,1727038287554,-500.0,0.00038356,2]
[338900278,1727038287563,-500.0,0.00038356,2]
[338900279,1727038287572,-500.0,0.00038356,2]
[338900280,1727038287582,-500.0,0.00038356,2]
[338900281,1727038287591,-500.0,0.00038356,2]
[338900282,1727038287599,-500.0,0.00038356,2]
[338900283,1727038287610,-500.0,0.00038356,2]
[338900284,1727038287619,-500.0,0.00038356,2]
[338900285,1727038287628,-500.0,0.00038356,2]
[338900286,1727038287638,-516.93987556,0.00038356,2]
[338900287,1727038287646,-1500.0,0.00038455,42]
[338900288,1727038287655,-500.0,0.00038699,10]
[338900289,1727038287664,-151.0,0.00038767,120]
[338900290,1727038287673,-151.0,0.00038767,120]
[338900291,1727038287682,-1500.0,0.00038864,42]
[338900292,1727038287691,-191347.60635266,0.0003888,120]
[338900293,1727038287700,-150.0,0.00039,30]
[338900294,1727038287709,-180.63771874,0.00039,11]
[338900295,1727038287719,-241.0,0.00039,2]
[338900296,1727038287730,-241.0,0.00039,2]
[338900297,1727038287740,-241.0,0.00039,2]
[338900298,1727038287749,-1500.0,0.00039273,42]
[338900299,1727038287758,-2252.09923154,0.00039316,120]
[338900300,1727038287766,-150.0,0.000396,2]
[338900301,1727038287776,-524.0,0.000396,2]
[338900302,1727038287785,-1500.0,0.00039682,42]
[338900303,1727038287794,-151.0,0.00039863,120]
[338900304,1727038287804,-4859.34621323,0.0004,2]
[338900305,1727038287813,-609.968,0.0004,5]
[338900306,1727038287893,-11000.0,0.0004,7]
[338900307,1727038287902,-150.0,0.0004,30]
[338900308,1727038287911,-1478.77143769,0.0004,120]
[338900309,1727038287921,-2106.09217377,0.0004,120]
[338900310,1727038287930,-1000.0,0.0004,120]
[338900311,1727038287941,-1000.0,0.0004,120]
[338900312,1727038287952,-300.0,0.0004,30]
[338900313,1727038287961,-300.0,0.0004,30]
[338900314,1727038287969,-10000.0,0.0004,2]
[338900315,1727038287983,-597.04362879,0.0004,120]
[338900316,1727038287992,-1186.3413058,0.0004,120]
[338900317,1727038288002,-6663.79506098,0.0004,50]
[338900318,1727038288011,-200.0,0.0004,120]
[338900319,1727038288022,-7983.09311447,0.0004,120]
[338900320,1727038288032,-500.0,0.0004,5]
[338900321,1727038288043,-5000.0,0.0004,40]
[338900322,1727038288053,-401.362586,0.0004,120]
[338900323,1727038288065,-911.3055,0.0004,60]
[338900324,1727038288074,-16359.17354667,0.0004,30]
[338900325,1727038288083,-500.0,0.0004,60]
[338900326,1727038288093,-300.0,0.0004,60]
[338900327,1727038288102,-8241.899999,0.0004,30]
[338900328,1727038288111,-24004.9104004,0.0004,120]
[338900329,1727038288120,-3498.26794638,0.0004,120]
[338900330,1727038288129,-250.0,0.0004,30]
[338900331,1727038288139,-507.10628271,0.0004,5]
[338900332,1727038288149,-1500.0,0.00040091,42]
[338900333,1727038288158,-450.54,0.000403,7]
[338900334,1727038288167,-500.0,0.00040343,10]
[338900335,1727038288177,-1500.0,0.000405,42]
[338900336,1727038288186,-151.0,0.00040521,120]
[338900337,1727038288195,-330.0,0.000408,120]
[338900338,1727038288206,-166.250462,0.00040808,2]
[338900339,1727038288217,-150057.37858,0.000409,30]
[338900340,1727038288228,-1500.0,0.00040909,42]
[338900341,1727038288238,-400.0,0.00040952,2]
[338900342,1727038288247,-151.0,0.00040959,120]
[338900343,1727038288256,-200.0,0.00041,30]
[338900344,1727038288266,-197.12727315,0.00041,5]
[338900345,1727038288275,-1000.0,0.00041,120]
[338900346,1727038288285,-37356.82445855,0.00041,30]
[338900347,1727038288295,-3894.37253778,0.00041,30]
[338900348,1727038288305,-1000.0,0.00041,120]
[338900349,1727038288315,-2807.32576308,0.00041,120]
[338900350,1727038288324,-874.40183,0.00041,40]
[338900351,1727038288334,-506.60395081,0.00041,120]
[338900352,1727038288343,-8233.10947909,0.00041,60]
[338900353,1727038288352,-1000.0,0.00041,120]
[338900354,1727038288362,-152.0,0.00041041,31]
[338900355,1727038288371,-152.0,0.00041041,31]
[338900356,1727038288380,-152.0,0.00041041,31]
[338900357,1727038288390,-152.0,0.00041041,31]
[338900358,1727038288399,-152.0,0.00041041,31]
[338900359,1727038288409,-152.0,0.00041041,31]
[338900360,1727038288419,-600.0,0.00041095,2]
[338900361,1727038288429,-600.0,0.00041095,2]
[338900362,1727038288438,-600.0,0.00041095,2]
[338900363,1727038288448,-600.0,0.00041095,2]
[338900364,1727038288458,-600.0,0.00041095,2]
[338900365,1727038288467,-600.0,0.00041095,2]
[338900366,1727038288478,-600.0,0.00041095,2]
[338900367,1727038288487,-600.0,0.00041095,2]
[338900368,1727038288496,-600.0,0.00041095,2]
[338900370,1727038288506,-610.49106825,0.00041095,2]
[338900371,1727038288515,-600.0,0.00041095,15]
[338900372,1727038288525,-492.63389254,0.00041095,15]
[338900373,1727038288534,-1340.20829969,0.00041095,120]
[338900374,1727038288543,-404.22,0.00041096,30]
[338900375,1727038288554,-180.1416854,0.00041096,2]
[338900376,1727038288563,-160.0,0.00041096,10]
[338900377,1727038288573,-1500.0,0.00041318,42]
[338900378,1727038288582,-3224.427244,0.00041553,120]
[338900379,1727038288591,-1500.0,0.00041727,42]
[338900380,1727038288601,-93000.0,0.000418,60]
[338900381,1727038288611,-565.28217489,0.00041987,30]
[338900382,1727038288621,-269.05082552,0.00042,120]
[338900383,1727038288631,-1000.0,0.00042,120]
[338900384,1727038288641,-695.0,0.00042,120]
[338900385,1727038288650,-2000.0,0.00042,32]
[338900386,1727038288661,-16030.09728761,0.00042,120]
[338900387,1727038288670,-10000.0,0.00042,30]
[338900388,1727038288680,-373929.893739,0.00042,120]
[338900389,1727038288690,-10000.0,0.00042,30]
[338900390,1727038288699,-500.0,0.00042,120]
[338900391,1727038288710,-1861165.9398554,0.00042,30]
[338900392,1727038288868,-1688.3448681,0.00042,30]
[338900393,1727038288880,-1150.23061612,0.00042,30]
[338900394,1727038288899,-447.27033635,0.00022191,2]
[338900395,1727038288912,-52.72966365,0.00022191,2]
[338900396,1727038288923,-103644.32038033,0.00042,30]
[338900397,1727038288990,-506.36727509,0.00021917,2]
[338900398,1727038289001,-500.0,0.00022465,2]
[338900399,1727038289012,-399.32707487,0.00022739,2]
[338900400,1727038289023,-208.9234097,0.00028795,2]
[338900401,1727038289033,-39702.14,0.00035616,3]
[338900402,1727038289044,-91935.38334539,0.00042,30]
[338900444,1727039141149,-266.59419522,0.00020542,2]
[338900446,1727039236341,-178.71088058,0.00020542,2]
[338900447,1727039236364,-152.29800919,0.00020876,2]
[338900448,1727039236386,-300.0,0.00020976,2]
[338900449,1727039236409,-58.00326463,0.00020976,2]
[338900450,1727039241198,-241.99673537,0.00020976,2]
[338900451,1727039241220,-139.5152721,0.00020977,2]
[338900534,1727039438836,-152.29800918,0.00020877,2]
[338900535,1727039438846,-212.662208,0.00020961,2]
[338900536,1727039438856,-300.0,0.00020976,2]
[338900537,1727039438866,-5275.01343525,0.00020977,2]
[338900538,1727039438888,-1159.16143074,0.00020977,2]
[338900539,1727039439053,-42.39022305,0.00020977,2]
[338900540,1727039439065,-1210.00000001,0.00020977,2]
[338900548,1727039440755,-17073.91963885,0.00020977,2]
[338900549,1727039440765,-152.29800918,0.00021095,2]
[338900550,1727039440777,-250.0,0.00021303,2]
[338900551,1727039440786,-152.29800918,0.00021314,2]
[338900552,1727039440795,-250.0,0.00021362,2]
[338900553,1727039440804,-250.0,0.0002142,2]
[338900554,1727039440814,-254.82076265,0.00021464,2]
[338900555,1727039440824,-250.0,0.00021479,2]
[338900556,1727039440833,-152.29800918,0.00021532,2]
[338900557,1727039440844,-250.0,0.00021537,2]
[338900558,1727039440854,-250.0,0.00021595,2]
[338900559,1727039440864,-3000.0,0.000216,2]
[338900560,1727039440876,-250.0,0.000216,2]
[338900561,1727039440886,-3000.0,0.0002161,2]
[338900562,1727039440896,-1819.86825368,0.0002162,2]
[338900579,1727039443686,-1180.13174632,0.0002162,2]
[338900580,1727039443697,-27.36204974,0.0002163,2]
[338900581,1727039443711,-4794.31436526,0.0002163,2]
[338900582,1727039443721,-151.383,0.00021632,2]
[338900583,1727039443731,-221.68793951,0.00021654,2]
[338900598,1727039446541,-28.31206049,0.00021654,2]
[338900599,1727039446550,-250.0,0.00021712,2]
[338900600,1727039446560,-250.0,0.00021771,2]
[338900601,1727039446570,-182.90242313,0.00021829,2]
[338900667,1727040441135,-1404.71884714,0.0002018,2]
[338900768,1727040548178,-478.45338864,0.000167,2]
[338900769,1727040548200,-250.0,0.00019886,2]
[338900770,1727040548224,-250.0,0.00019941,2]
[338900773,1727040552119,-250.0,0.00019995,2]
[338900774,1727040552144,-250.0,0.0002005,2]
[338900775,1727040552169,-250.0,0.00020105,2]
[338900776,1727040552191,-250.0,0.00020159,2]
[338900777,1727040552214,-945.18900616,0.0002018,2]
[338900778,1727040552236,-212.6622086,0.00020203,2]
[338900779,1727040552257,-250.0,0.00020214,2]
[338900780,1727040552277,-166.250462,0.0002023,2]
[338900781,1727040552302,-250.0,0.00020268,2]
[338900782,1727040552324,-250.0,0.00020323,2]
[338900783,1727040552345,-250.0,0.00020377,2]
[338900784,1727040552482,-2632.2861822,0.00020409,2]
[338900785,1727040552507,-250.0,0.00020432,2]
[338900786,1727040552533,-250.0,0.00020486,2]
[338900787,1727040552555,-250.0,0.00020541,2]
[338900788,1727040552578,-250.0,0.00020595,2]
[338900789,1727040552604,-250.0,0.0002065,2]
[338900793,1727040604832,192.96396055,0.00020079,2]
[338900868,1727040637921,-250.0,0.00020705,2]
[338900869,1727040637931,-250.0,0.00020759,2]
[338900870,1727040637941,-250.0,0.00020814,2]
[338900871,1727040637950,-250.0,0.00020868,2]
[338900872,1727040637959,-190.3220693,0.00020875,2]
[338900873,1727040637968,-250.0,0.00020923,2]
[338900874,1727040637977,-300.0,0.00021176,2]
[338900875,1727040637986,-4087.98033619,0.00021177,2]
[338900876,1727040638000,-333.04240939,0.00021177,2]
[338900877,1727040638014,-14673.57488059,0.00021177,2]
[338900878,1727040638028,-5805.40237383,0.00021177,2]
[338900879,1727040638037,-150.0,0.000216,2]
[338900880,1727040638047,-1591.0624963,0.000218,2]
[338900881,1727040638056,-23796.79988433,0.00021896,9]
[338900882,1727040638065,-6569.28409785,0.00021896,9]
[338900888,1727040639710,-1776.67036773,0.00021896,9]
[338900889,1727040639829,-2542.45064415,0.00021897,3]
[338900890,1727040639843,-33355.99509555,0.00021897,3]
[338900891,1727040639854,-35898.4457397,0.00021907,3]
[338900892,1727040639863,-500.0,0.00021917,2]
[338900893,1727040639873,-500.0,0.00021917,2]
[338900894,1727040639882,-500.0,0.00021917,2]
[338900895,1727040639891,-500.0,0.00021917,2]
[338900896,1727040639901,-500.0,0.00021917,2]
[338900897,1727040639910,-606.61,0.00021917,2]
[338900898,1727040639919,-500.0,0.00021917,2]
[338900899,1727040639929,-500.0,0.00021917,2]
[338900900,1727040639938,-500.0,0.00021917,2]
[338900901,1727040639947,-500.0,0.00021917,2]
[338900902,1727040639956,-468.59729255,0.00021917,2]
[338900903,1727040639965,-500.0,0.00021917,2]
[338900904,1727040639974,-500.0,0.00021917,2]
[338900905,1727040639983,-500.0,0.00021917,2]
[338900906,1727040639992,-500.0,0.00021917,2]
[338900907,1727040640001,-500.0,0.00021917,2]
[338900908,1727040640011,-606.39,0.00021917,2]
[338900909,1727040640021,-501.98663891,0.00021917,2]
[338900910,1727040640030,-555.88606877,0.00021917,2]
[338900911,1727040640039,-500.0,0.00021917,2]
[338900912,1727040640050,-500.0,0.00021917,2]
[338900913,1727040640059,-641.28,0.00021917,2]
[338900914,1727040640068,-319.53225703,0.00021917,2]
[338900915,1727040640078,-500.0,0.00021917,2]
[338900916,1727040640087,-500.0,0.00021917,2]
[338900917,1727040640097,-564.74105565,0.00021917,2]
[338900918,1727040640107,-500.0,0.00021917,2]
[338900919,1727040640116,-500.0,0.00021917,2]
[338900920,1727040640126,-529.77,0.00021917,2]
[338900921,1727040640136,-500.0,0.00021917,2]
[338900922,1727040640145,-500.0,0.00021917,2]
[338900923,1727040640154,-500.0,0.00021917,2]
[338900924,1727040640163,-500.0,0.00021917,2]
[338900925,1727040640173,-500.0,0.00021917,2]
[338900926,1727040640182,-600.22925132,0.00021917,2]
[338900927,1727040640191,-500.0,0.00021917,2]
[338900928,1727040640200,-500.0,0.00021917,2]
[338900929,1727040640209,-500.0,0.00021917,2]
[338900930,1727040640218,-500.0,0.00021917,2]
[338900931,1727040640227,-500.0,0.00021917,2]
[338900932,1727040640237,-500.0,0.00021917,2]
[338900933,1727040640246,-502.1164976,0.00021917,2]
[338900934,1727040640255,-631.19743658,0.00021917,2]
[338900935,1727040640264,-557.141138,0.00021917,2]
[338900936,1727040640274,-500.0,0.00021917,2]
[338900937,1727040640283,-500.0,0.00021917,2]
[338900938,1727040640292,-500.0,0.00021917,2]
[338900939,1727040640301,-500.0,0.00021917,2]
[338900940,1727040640312,-500.0,0.00021917,2]
[338900941,1727040640321,-500.0,0.00021917,2]
[338900942,1727040640330,-500.0,0.00021917,2]
[338900943,1727040640339,-500.0,0.00021917,2]
[338900944,1727040640348,-500.0,0.00021917,2]
[338900945,1727040640359,-500.0,0.00021917,2]
[338900946,1727040640368,-500.0,0.00021917,2]
[338900947,1727040640378,-500.0,0.00021917,2]
[338900948,1727040640388,-504.42,0.00021917,2]
[338900949,1727040640398,-500.0,0.00021917,2]
[338900950,1727040640407,-500.0,0.00021917,2]
[338900951,1727040640416,-500.0,0.00021917,2]
[338900952,1727040640426,-500.0,0.00021917,2]
[338900953,1727040640435,-500.0,0.00021917,2]
[338900954,1727040640445,-500.0,0.00021917,2]
[338900955,1727040640454,-500.0,0.00021917,2]
[338900956,1727040640464,-421.31651463,0.00021917,2]
[338900957,1727040640473,-500.0,0.00021917,2]
[338900958,1727040640483,-500.0,0.00021917,2]
[338900959,1727040640492,-500.81641142,0.00021917,2]
[338900960,1727040640501,-500.0,0.00021917,2]
[338900961,1727040640510,-500.0,0.00021917,2]
[338900962,1727040640519,-500.0,0.00021917,2]
[338900963,1727040640528,-500.0,0.00021917,2]
[338900964,1727040640537,-500.0,0.00021917,2]
[338900965,1727040640546,-584.16839939,0.00021917,2]
[338900966,1727040640555,-588.95,0.00021917,2]
[338900967,1727040640564,-500.0,0.00021917,2]
[338900968,1727040640574,-500.0,0.00021917,2]
[338900969,1727040640583,-502.98611472,0.00021917,2]
[338900970,1727040640593,-500.0,0.00021917,2]
[338900971,1727040640602,-500.0,0.00021917,2]
[338900972,1727040640611,-500.0,0.00021917,2]
[338900973,1727040640620,-500.0,0.00021917,2]
[338900974,1727040640630,-500.0,0.00021917,2]
[338900975,1727040640638,-501.08956131,0.00021917,2]
[338900976,1727040640647,-168.43434002,0.00021917,2]
[338900977,1727040640657,-500.0,0.00021917,2]
[338900978,1727040640666,-500.0,0.00021917,2]
[338900979,1727040640675,-500.0,0.00021917,2]
[338900980,1727040640684,-500.0,0.00021917,2]
[338900981,1727040640694,-500.0,0.00021917,2]
[338900982,1727040640703,-500.0,0.00021917,2]
[338900983,1727040640712,-500.0,0.00021917,2]
[338900984,1727040640723,-500.0,0.00021917,2]
[338900985,1727040640736,-500.0,0.00021917,2]
[338900986,1727040640745,-500.0,0.00021917,2]
[338900987,1727040640754,-500.0,0.00021917,2]
[338900988,1727040640764,-500.0,0.00021917,2]
[338900989,1727040640775,-500.0,0.00021917,2]
[338900990,1727040640785,-500.0,0.00021917,2]
[338900991,1727040640795,-606.84405517,0.00021917,2]
[338900992,1727040640805,-500.0,0.00021917,2]
[338900993,1727040640814,-500.0,0.00021917,2]
[338900994,1727040640824,-500.0,0.00021917,2]
[338900995,1727040640833,-500.0,0.00021917,2]
[338900996,1727040640842,-500.0,0.00021917,2]
[338900997,1727040640852,-569.29975943,0.00021917,2]
[338900998,1727040640861,-500.0,0.00021917,2]
[338900999,1727040640871,-500.0,0.00021917,2]
[338901000,1727040640881,-500.0,0.00021917,2]
[338901001,1727040640891,-500.0,0.00021917,2]
[338901002,1727040640900,-500.0,0.00021917,2]
[338901003,1727040640910,-500.0,0.00021917,2]
[338901004,1727040640919,-500.0,0.00021917,2]
[338901005,1727040640929,-500.0,0.00021917,2]
[338901006,1727040640939,-500.0,0.00021917,2]
[338901007,1727040640949,-500.0,0.00021917,2]
[338901008,1727040640958,-500.0,0.00021917,2]
[338901009,1727040640968,-610.62999999,0.00021917,2]
[338901010,1727040640977,-500.0,0.00021917,2]
[338901011,1727040640987,-500.0,0.00021917,2]
[338901012,1727040640997,-500.0,0.00021917,2]
[338901013,1727040641007,-500.0,0.00021917,2]
[338901014,1727040641016,-508.41173806,0.00021917,2]
[338901015,1727040641025,-500.0,0.00021917,2]
[338901016,1727040641035,-500.0,0.00021917,2]
[338901017,1727040641044,-500.0,0.00021917,2]
[338901018,1727040641054,-500.0,0.00021917,2]
[338901019,1727040641063,-500.0,0.00021917,2]
[338901020,1727040641072,-500.0,0.00021917,2]
[338901021,1727040641082,-500.0,0.00021917,2]
[338901022,1727040641091,-500.0,0.00021917,2]
[338901023,1727040641102,-500.0,0.00021917,2]
[338901024,1727040641111,-500.0,0.00021917,2]
[338901025,1727040641121,-500.0,0.00021917,2]
[338901026,1727040641130,-373.23529926,0.00021917,2]
[338901027,1727040641140,-500.0,0.00021917,2]
[338901028,1727040641149,-500.0,0.00021917,2]
[338901029,1727040641158,-500.0,0.00021917,2]
[338901030,1727040641168,-500.0,0.00021917,2]
[338901031,1727040641177,-200.0,0.00021917,2]
[338901032,1727040641187,-500.0,0.00021917,2]
[338901033,1727040641197,-500.0,0.00021917,2]
[338901034,1727040641207,-500.0,0.00021917,2]
[338901035,1727040641216,-500.0,0.00021917,2]
[338901036,1727040641226,-300.0,0.00021917,2]
[338901037,1727040641236,-500.0,0.00021917,2]
[338901038,1727040641245,-655.92,0.00021917,2]
[338901039,1727040641255,-500.0,0.00021917,2]
[338901040,1727040641265,-500.0,0.00021917,2]
[338901041,1727040641274,-500.0,0.00021917,2]
[338901042,1727040641284,-500.0,0.00021917,2]
[338901043,1727040641294,-166.666666,0.00021918,2]
[338901044,1727040641303,-5228.74059673,0.00022171,3]
[338901068,1727040642760,-933.4792192,0.00021796,2]
[338901079,1727040645658,-1659.11752551,0.00021796,2]
[338901080,1727040645668,-16259.92562486,0.00022171,3]
[338901081,1727040645718,-953.012298,0.00022171,3]
[338901082,1727040645732,-1022.12551638,0.00022171,3]
[338901164,1727041408408,4640.62223773,0.000141,2]
[338901166,1727041428396,155.0,0.000141,2]
[338901168,1727041433007,155.0,0.000141,2]
[338901169,1727041437544,155.0,0.000141,2]
[338901170,1727041442367,155.0,0.000141,2]
[338901171,1727041447082,155.0,0.000141,2]
[338901172,1727041451609,155.0,0.000141,2]
[338901173,1727041456117,155.0,0.000141,2]
[338901174,1727041460998,155.0,0.000141,2]
[338901175,1727041465560,155.0,0.000141,2]
[338901176,1727041470047,239.42610246,0.000141,2]
[338901179,1727041558163,-156.17962331,0.00019742,2]
[338901180,1727041558190,-2928.91860719,0.0001977,2]
[338901184,1727041647112,-300.0,0.00019769,2]
[338901185,1727041647134,-300.0,0.00019769,2]
[338901186,1727041647155,-5334.40485995,0.0001977,2]
[338901190,1727041757112,-3000.0,0.00019758,2]
[338901191,1727041757135,-300.0,0.00019769,2]
[338901192,1727041757157,-16636.67653286,0.0001977,2]
[338901193,1727041757177,-928.3095548,0.0001979,2]
[338901194,1727041757199,-670.012198,0.00019817,2]
[338901195,1727041757337,-250.0,0.00019842,2]
[338901196,1727041769108,-250.0,0.00020199,2]
[338901197,1727041769130,-250.0,0.00020255,2]
[338901198,1727041769152,-250.0,0.0002031,2]
[338901199,1727041769173,-250.0,0.00020366,2]
[338901200,1727041769194,-250.0,0.00020421,2]
[338901201,1727041769215,-250.0,0.00020476,2]
[338901202,1727041769236,-191.752287,0.00020494,2]
[338901203,1727041769258,-250.0,0.00020532,2]
[338901204,1727041769280,-250.0,0.00020587,2]
[338901205,1727041769302,-250.0,0.00020643,2]
[338901211,1727041831364,219.21298692,0.000141,2]
[338901240,1727041831999,-250.0,0.00020698,2]
[338901242,1727041832010,-86.29185285,0.00020753,2]
[338901245,1727041832023,-163.70814715,0.00020753,2]
[338901247,1727041832033,-250.0,0.00020809,2]
[338901249,1727041832044,-250.0,0.00020864,2]
[338901250,1727041832053,-237.29767288,0.0002092,2]
[338901303,1727041838409,-12.70232712,0.0002092,2]
[338901304,1727041838418,-250.0,0.00020975,2]
[338901305,1727041838428,-250.0,0.0002103,2]
[338901306,1727041838438,-250.0,0.00021086,2]
[338901307,1727041838450,-250.0,0.00021141,2]
[338901308,1727041838460,-457.03033191,0.00021147,2]
[338901309,1727041838470,-250.0,0.00021197,2]
[338901310,1727041838479,-250.0,0.00021252,2]
[338901311,1727041838488,-6205.87362092,0.00021647,2]
[338901312,1727041838498,-152.6515925,0.000217,2]
[338901313,1727041838508,-1610.26451984,0.00021817,2]
[338901314,1727041838526,-790.89131133,0.00021817,2]
[338901315,1727041838535,-503.15297395,0.00021906,2]
[338901316,1727041838545,-500.0,0.00021917,2]
[338901317,1727041838554,-500.0,0.00021917,2]
[338901318,1727041838566,-500.0,0.00021917,2]
[338901319,1727041838575,-500.0,0.00021917,2]
[338901320,1727041838722,-500.0,0.00021917,2]
[338901321,1727041838731,-366.54277406,0.00021917,2]